Workbook

Sheet rev block
D2: MILTON ROY L.L.C. PUMP SYSTEM ANALYSIS TOOL
C3: Doc No.: | D3: 51518 | F3: Rev #: | G3: A
C6: Revision History:
C8: Rev | D8: Date | E8: Brief description of change | F8: Worksheets | G8: Cells | H8: Author
C9: A | D9: 2013-06-30 | E9: Initial Release, added MBP & MCP, ECN # 16347 | F9: All | G9: All | H9: Glenn Smith

Sheet NPSH (hidden)
E1: Pressure Drops at Peak Flow
A4: Pressure drop due to acceleration
B6: dP = [NQ(S.G.)Lp]/[2.77x10^4(Dp^2)]
B8: dP (Press Drop) | D8: N (SPM) | E8: Q (GPH) | F8: S.G. | G8: Lp (Pipe Length) | H8: Dp (Pipe ID) | I8: Atm. Press (psia) | J8: Tank Level | K8: Head Press. (PSIA) | L8: Static PSI
B9: =(D9*E9*F9*G9)/(27700*H9^2) -> 1.4763243 | D9: ='NPIP SUCTION RESULTS'!G42 -> 45 | E9: ='NPIP SUCTION RESULTS'!D42 -> 50 | F9: ='NPIP SUCTION RESULTS'!$G$26 -> 1 | G9: ='NPIP SUCTION RESULTS'!F56 -> 20 | H9: ='NPIP SUCTION RESULTS'!F55 -> 1.049 | I9: =SUM(14.7,('NPIP SUCTION RESULTS'!$F$30*-0.3048*0.01450377/8)) -> 14.7 | J9: ='NPIP SUCTION RESULTS'!I32 -> 0 | K9: =(62.4/144)*F9*J9+I9+I12-J12 -> 14.5549623 | L9: =K9-I9-I12 -> -0.1450377
B10: 0 | D10: =D9 -> 45 | E10: =E9 -> 50 | F10: =F9 -> 1 | G10: 0 | H10: ='NPIP SUCTION RESULTS'!F55 -> 1.049
B11: 0 | D11: =D9 -> 45 | E11: =E9 -> 50 | F11: =F9 -> 1 | G11: ='NPIP SUCTION RESULTS'!H56 -> 0 | H11: ='NPIP SUCTION RESULTS'!H55 -> 1.049 | I11: Tank Press (psig) | J11: Vapor pressure | K11: Elevation Loss
B12: 0 | D12: =D9 -> 45 | E12: =E9 -> 50 | F12: =F9 -> 1 | G12: 0 | H12: ='NPIP SUCTION RESULTS'!H55 -> 1.049 | I12: ='NPIP SUCTION RESULTS'!F28 -> 0 | J12: ='NPIP SUCTION RESULTS'!E26 -> 0.1450377 | K12: =(62/144)*F9*J12+I9 -> 14.76244679
B13: 0 | D13: =D9 -> 45 | E13: =E9 -> 50 | F13: =F9 -> 1 | G13: ='NPIP SUCTION RESULTS'!J56 -> 0 | H13: ='NPIP SUCTION RESULTS'!J55 -> 0.742
B14: 0 | D14: =D9 -> 45 | E14: =E9 -> 50 | F14: =F9 -> 1 | G14: 0 | H14: ='NPIP SUCTION RESULTS'!J55 -> 0.742
A15: Single Suction Check Valve Viscous Loss
B17: dP = 0.7(0.0000414U^0.9Q^1.1)/(Ds^3.1)
B19: dP (Press Drop) | D19: U (centipoise) | E19: Q (GPH) | F19: Number of Seats | G19: Ds (Seat Dia.) | J19: Accel Losses | K19: Frictional Losses
B20: =0.7*(0.0000414)*(D20^0.9)*(E20^1.1)/(G20^3.1)*F20 -> 0.1072574421 | D20: ='NPIP SUCTION RESULTS'!H26 -> 1 | E20: =E9 -> 50 | F20: ='NPIP SUCTION RESULTS'!M42 -> 1 | G20: =INDEX('NPIP SUCTION RESULTS'!$AM$105:$AM$195,'NPIP SUCTION RESULTS'!$D$38) -> 0.283 | I20: Head (PSIA) | J20: =K9 -> 14.5549623 | K20: =K9 -> 14.5549623
D21: . | I21: Acceleration | J21: =B9+B11+B13 -> 1.4763243 | K21: 0
I22: Check Valve | J22: 0 | K22: =B20 -> 0.1072574421
A23: Contour Plate Viscous Loss - Non HPD pumps | I23: Contour Plate | J23: 0 | K23: =$B$28 -> 2.185494515e-06
I24: Friction | J24: 0 | K24: =SUM(B35:B40) -> 0.01180957
B25: dP = (0.00000434Q^1.1U^0.9)/(N^1.1Dh^3.1) | I25: Head Press (PSIA) | J25: =J20-J21-J22-J23 -> 13.078638 | K25: =K20-K22-K23-K24 -> 14.4358931
B27: dP (Press Drop) | D27: Q (GPH) | E27: U (centipoise) | F27: # of holes | G27: Dh (hole dia.)
B28: =(0.00000434*D28^1.1*E28^0.9)/(F28^1.1*G28^3.1) -> 2.185494515e-06 | D28: =E9 -> 50 | E28: =D20 -> 1 | F28: =INDEX('NPIP SUCTION RESULTS'!$BB$105:$BB$195,'NPIP SUCTION RESULTS'!$D$38) -> 1 | G28: =INDEX('NPIP SUCTION RESULTS'!$BE$105:$BE$195,'NPIP SUCTION RESULTS'!$D$38) -> 5
I29: k factor= | J29: =((4*(K24^2))+(J21^2))/(4*K24*J21) -> 31.26071004 | K29: dosapro's method - don't use
A30: Pipeline Friction | I30: Total loss = | J30: =J29*J21 -> 46.15094588
B32: dP = (0.0000143QULp)/(Dp^4) | I32: sqrt sum squares | J32: =SQRT(J21^2+K24^2) -> 1.476371534 | K32: use this
B34: dP (Press Drop) | D34: Q (GPH) | E34: U (centipoise) | F34: Lp (Pipe Length) | G34: Dp (Pipe ID)
B35: =0.0000143*D35*E35*F35/G35^4 -> 0.01180957 | D35: =$D$28 -> 50 | E35: =$E$28 -> 1 | F35: =G9 -> 20 | G35: 1.049
B36: 0 | D36: 50 | E36: 1 | F36: ='NPIP SUCTION RESULTS'!$F$67 -> 0 | G36: 1.049
B37: 0 | D37: 50 | E37: 1 | F37: 0 | G37: 1.049
B38: 0 | D38: 50 | E38: 1 | F38: ='NPIP SUCTION RESULTS'!$H$67 -> 0 | G38: 1.049
B39: 0 | D39: 50 | E39: 1 | F39: =G13 -> 0 | G39: =H13 -> 0.742
B40: 0 | D40: 50 | E40: 1 | F40: ='NPIP SUCTION RESULTS'!$J$67 -> 0 | G40: =H14 -> 0.742
L108: TAYA TO CONFIRM THESE FOR DURAMETER

Sheet NPIP SUCTION RESULTS
L1: Document: | N1: ='rev block'!D3 -> 51518
M2: Revision: | N2: ='rev block'!G3 -> A
B3: PUMP SYSTEM ANALYSIS TOOL -SUCTION CONDITIONS
B4: Net Positive Inlet Pressure Calculator for 1 Tank to 1 Metering Pump
C5: Calculations used in this program are based on a combination of theoritical anaylses and results of extensive fluids laboratory testing. Because of simplifying assumptions made in equations, variations in chemical properties, variations in pipe characteristics, and other factors, Milton Roy L.L.C. cannot accept any responsibility for usefulness of calculated results. The user is cautioned to verify results from this program with independent methods. This calculator is applicable only for Milton Roy motor driven hydraulic or mechanical actuated diaphram or packed plunger pumps. DO NOT USE THIS CALCULATOR FOR ANY SOLENOID DRIVEN OR AIR-DRIVEN METERING PUMPS.
B9: NOTES and COLOR KEY
C10: ▪ | D10: Cell Color Key: | F10: Required Data | H10: Optional Data | J10: Calculated Data | L10: Final Results Data
C11: ▪ | D11: All pressures are in psia as indicated
C12: ▪ | D12: All flow rates are in gallons per hour | K12: Note: Be sure all data from previous calculations has been cleared before starting each new calculation.
C13: ▪ | D13: Lengths and height are in feet
C14: ▪ | D14: Pipe Diameters are in inches.
B16: PROJECT DATA
D17: Project Name: | E17: NPSH CALC FOR ??? PUMPS | K17: Date: | L17: =TODAY() -> 2020-06-04
D19: Prepared by: | E19: ENTER YOUR NAME
B21: CHEMICAL and SITE DATA
B23: 1. | C23: Select Chemical here: (based on 72° F) | E23: 68 | J23: OR Enter chemical name here:
K24: Enter alternate values below based on fluid temperature
E25: Vapor Pressure psia: | G25: S.G.: | H25: Viscosity cps: | K25: Vapor Pressure psia: | M25: S.G.: | N25: Viscosity cps:
E26: =IF($K$26>0,$K$26,INDEX($Z108:$Z178,$E$23)*14.50377) -> 0.1450377 | G26: =IF($M$26>0,$M$26,INDEX($Y108:$Y178,$E$23)) -> 1 | H26: =IF($N$26>0,$N$26,INDEX($AA108:$AA178,$E$23)) -> 1
B28: 2. | C28: Enter tank or suction pressure: | F28: 0 | G28: psig (enter "0" if atmospheric)
B30: 3. | C30: Enter elevation above sea level: | F30: 0 | G30: feet
B32: 4. | C32: Enter the fluid height difference between tank outlet pipe elevation and pump centerline elevation (USE NEGATIVE NUMBER IF TANK OUTLET IS BELOW PUMP CENTERLINE): | H32: ∆ H = | I32: 0 | J32: feet
H33: Fluid lift condtion | I33: =IF($I$32<0,"X","") -> 
H34: Flooded suction | I34: =IF($I$32>=0,"X","") -> X
B36: 5. ENTER PUMP DATA
D37: Select pump product: | J37: Number of Pump Heads:
D38: 1 | J38: 1 | K38: IF SIMPLEX PUMP - ENTER 1, DUPLEX PUMP - ENTER 2, TRIPLEX PUMP - ENTER 3 (REMEMBER TO USE TOTAL FLOWRATE)
D41: Total pump flowrate: | G41: Pump stroke speed: | J41: Plunger diameter: | M41: Number of check valve seats:
D42: 50 | E42: GPH | G42: 45 | H42: SPM | K42: inches | M42: 1 | N42: per head
D44: Minimum Allowable Inlet Pressure in liquid end for pump selected: | K44: =INDEX($AL$105:$AL$195,$D$38) -> 3 | L44: PSIA
C46: Note: The minimum allowable inlet pressure for each pump has a safety factor built in. Should you choose to add additional safety factor,
D47: enter the amount of factor in psia here: | H47: 0 | I47: Be sure to enter 0 if no additional safety factor is required.
B49: 6. ENTER SUCTION SIDE PIPING PARAMETERS
C50: The calculator allows data to be entered for up to 3 different sections of suction pipe. This is important if pipe diameter changes between the tank and the pump. When not used or not applicable, enter "0" in the cell.
C52: Description | F52: Section 1 | H52: Section 2 | J52: Section 3
C53: Select Pipe Schedule: | F53: 1 | H53: 1 | J53: 2
C54: Select Pipe Size | F54: 5 | H54: 5 | J54: 4
C55: Calculated pipe ID inches | F55: =IF(F53=1,INDEX($U$108:$U$129,F54),IF(F53=2,INDEX($T$108:$T$129,F54),IF(F53=3,INDEX($V$108:$V$129,F54)))) -> 1.049 | H55: =IF(H53=1,INDEX($U$108:$U$129,H54),IF(H53=2,INDEX($T$108:$T$129,H54),IF(H53=3,INDEX($V$108:$V$129,H54)))) -> 1.049 | J55: =IF(J53=1,INDEX($U$108:$U$129,J54),IF(J53=2,INDEX($T$108:$T$129,J54),IF(J53=3,INDEX($V$108:$V$129,J54)))) -> 0.742 | L55: Calculation Fields - do not change
C56: Enter pipe actual length | F56: 20 | G56: feet | H56: 0 | I56: feet | J56: 0 | K56: feet
C57: # of 90° elbows | F57: 0 | H57: 0 | J57: 0 | L57: =SUM(30*F$55/12)*F57 -> 0 | M57: =SUM(30*H$55/12)*H57 -> 0 | N57: =SUM(30*J$55/12)*J57 -> 0
C58: # of 45° elbows | F58: 0 | H58: 0 | J58: 0 | L58: =SUM(16*F$55/12)*F58 -> 0 | M58: =SUM(16*H$55/12)*H58 -> 0 | N58: =SUM(16*J$55/12)*J58 -> 0
C59: Foot Valve | F59: 0 | H59: 0 | J59: 0 | L59: =SUM(420*F$55/12)*F59 -> 0 | M59: =SUM(420*H$55/12)*H59 -> 0 | N59: =SUM(420*J$55/12)*J59 -> 0
C60: # of external ball check valves | F60: 0 | H60: 0 | J60: 0 | L60: =SUM(150*F$55/12)*F60 -> 0 | M60: =SUM(150*H$55/12)*H60 -> 0 | N60: =SUM(150*J$55/12)*J60 -> 0
C61: # of tees - run flow | F61: 0 | H61: 0 | J61: 0 | L61: =SUM(20*F$55/12)*F61 -> 0 | M61: =SUM(20*H$55/12)*H61 -> 0 | N61: =SUM(20*J$55/12)*J61 -> 0
C62: # of tees - branch flow | F62: 0 | H62: 0 | J62: 0 | L62: =SUM(60*F$55/12)*F62 -> 0 | M62: =SUM(60*H$55/12)*H62 -> 0 | N62: =SUM(60*J$55/12)*J62 -> 0
C63: # of single reduction reducer bushings | F63: 0 | H63: 0 | J63: 0 | L63: =SUM(15.5*F$55/12)*F63 -> 0 | M63: =SUM(15.5*H$55/12)*H63 -> 0 | N63: =SUM(15.5*J$55/12)*J63 -> 0
C64: # of Strainers or Valves | F64: 0 | H64: 0 | J64: 0 | L64: =SUM((($D$42/60)*27700*(F$55^2))/((F$65^2)*$G$42*$G$26)*F$64) -> 0 | M64: =SUM((($D$42/60)*27700*(H$55^2))/((H$65^2)*$G$42*$G$26)*H$64) -> 0 | N64: =SUM((($D$42/60)*27700*(J$55^2))/((J$65^2)*$G$42*$G$26)*J$64) -> 0
C65: CV of Strainer or Valve | F65: 9 | H65: 9 | J65: 9
C67: Calculated equivalent pipe length | F67: =SUM(L57:L64) -> 0 | G67: feet | H67: =SUM(M57:M64) -> 0 | I67: feet | J67: =SUM(N57:N64) -> 0 | K67: feet
C68: Friction pressure drop for section without dampener | F68: =SUM(NPSH!$B$35:$B$36) -> 0.01180957 | G68: psi | H68: =SUM(NPSH!$B$37:$B$38) -> 0 | I68: psi | J68: =SUM(NPSH!$B$39:$B$40) -> 0 | K68: psi
C69: Acceleration Pressure Drop for pipe section (without dampener): | F69: =SUM(NPSH!B9:B10) -> 1.4763243 | G69: psi | H69: =SUM(NPSH!$B$11:$B$12) -> 0 | I69: psi | J69: =SUM(NPSH!$B$13:$B$14) -> 0 | K69: psi
C70: Friction pressure drop for pipe section (with dampener): | F70: =SUM(F68*0.2) -> 0.002361914 | G70: psi | H70: =SUM(H68*0.2) -> 0 | I70: psi | J70: =SUM(J68*0.2) -> 0 | K70: psi
C71: Acceleration Pressure Drop for pipe section (with dampener): | F71: =SUM(F69*0.2) -> 0.2952648601 | G71: psi | H71: =SUM(H69*0.2) -> 0 | I71: psi | J71: =SUM(J69*0.2) -> 0 | K71: psi
B73: 7. | C73: Indicate if a pump suction accumulator (dampener) will be provided (Y/N): | J73: 2
B75: CALCULATIONS
C76: Total of pressure sources: (based on tank pressure, vapor pressure and elev above sea level) | N76: =NPSH!$K$9 -> 14.5549623 | O76: PSIA
H77: Total frictional pressure drop through all piping sections: | N77: =IF(S133="Y",(F70+H70+J70),NPSH!$K$24) -> 0.01180957 | O77: PSI
H78: Total acceleration pressure drop through all piping sections: | N78: =IF(S133="Y",(F71+H71+J71),NPSH!J21*$AF$176) -> 1.4763243 | O78: PSI
H79: Contour Plate Friction Loss: | N79: =NPSH!$B$28 -> 2.185494515e-06 | O79: PSI
H80: Operating Safety margin (entered above): | N80: =H47 -> 0 | O80: PSI
H81: Check Valve Pressure Loss: | N81: =NPSH!$B$20 -> 0.1072574421 | O81: PSI
H82: Minimum Net Inlet Pressure in Liquid End After all Frictional related losses and vapor pressure: | N82: =IF(S133="Y",(NPSH!K20-(SUM(NPSH!K22:'NPSH'!K24)*0.2)-N80),(NPSH!K20-SUM(NPSH!K22:'NPSH'!K24)-N80)) -> 14.4358931 | O82: PSIA
H83: Minimum Net Inlet Pressure in Liquid End After all Acceleration related losses and vapor pressure: | N83: =IF(S133="Y",(NPSH!J20-(NPSH!J21*0.2*$AF$176)-N80-N79-N81),(NPSH!J20-(NPSH!J21*$AF$176)-N80-N79-N81)) -> 12.97137837 | O83: PSIA
B85: CONCLUSIONS - GO / NO GO: | S85: WILLIAMS & HAZEN FORMULA FOR SMOOTH/STEADY TURBULENT FLOW
S86: DP= 4335 (0.2083)(100/150)^1.852 X ((Q)^1.852)/((DI)^1.852)XL/100
B87: * Available NPIP based on frictional losses: | H87: =IF((N82>K44),"'OK FOR USE'","'INADEQUATE - Need larger diameter piping, shorter piping, reduce flowrate, slower pump speed to plunger diameter ratio, lower viscosity of fluid, or higher suction pressure.'") -> 'OK FOR USE' | S87: STEADY FLOWRATE DP CALCULATION
B88: * Available NPIP based on acceleration losses: | H88: =IF((N83>K44),"'OK FOR USE'","'INADEQUATE - Need larger diameter piping, shorter piping, reduce flowrate, slower pump speed to plunger diameter ratio, or higher suction pressure.'") -> 'OK FOR USE'
B90: Notice: The available Net Positive Inlet Pressure (NPIP) values shown above are based on available supply tank static pressure, less calculated total frictional or acceleration losses, check valve losses, contour plate losses (if applicable) and process fluid vapor pressure. The available net positive fluid inlet pressure value must exceed fluid vapor pressure plus minimum NPSH pump design pressure, in order to avoid fluid cavitation between fluid and diaphragm in the pump liquid end. However, the pump liquid end and pump gear box/plunger are actually subjected to the process fluid supply pressure, which is the highest available NPIP pressure value plus fluid vapor pressure. Please refer to the pump user manual to verify that this actual supply pressure does not exceed maximum pump suction design pressure. This situation can typically occur when the supply tank fluid is pressurized to overcome high fluid vapor pressures.
S91: Q = 104 GPH X 2 PUMPS + 57 GPH (1 PUMP) = 265 GPH / 60 = 4.42 GPM
S95: DP=0.4335*10.44*L*(Q^1.85/(C^1.85*Di^4.8655)
B96: ENTER ADDITIONAL COMMENTS HERE | S96: L=LENGTH OF PIPE IN FEET
S97: C=SPECIFIC ROUGHNESS CONSTANT FOR CLEAN PIPING (SMOOTH SS=140, CONCRETE=120, CAST IRON=130, COPPER=140, PLASTIC=140 (SUBTRACT 30% FOR DIRTY PIPE)
S98: Di=PIPE INTERNAL DIAMETER, INCHES
B99: For suggestions and contacts: | E99: Email: Info@miltonroy.com | H99: Phone: 215-441-0800 | J99: Fax: 215-441-0735
AH104: PUMP MODEL CODES & SIZES | AL104: MIN NPSH (PSIA) | AM104: METAL SEAT DIAM INCHES | AO104: PLASTIC SEAT DIAM INCHES | AQ104: CHECK VLV DEFAULT | AT104: SEAT PART # | AV104: Max Suction pressure | AX104: SUCT BALL SIZE (INCHES) | AZ104: DISCH BALL SIZE | BB104: CONTOUR PLATE DATA (# OF HOLES) | BE104: CONTOUR PLATE DATA HOLE DIAM. INCHES)
AH105: Milroyal D HPD 1" (MDH16_) | AL105: 3 | AM105: 0.283 | AO105: 0.47 | AR105: 2 | AT105: 2240092XXX | BB105: 1 | BE105: 5
S106: SCH 80 PLASTIC | W106: CHEMICAL PARAMETERS | AH106: Milroyal D HPD 1-1/4" (MDH20_) | AL106: 3 | AM106: 0.475 | AO106: 0.47 | AR106: 2 | AT106: 2240092XXX | BB106: 1 | BE106: 5
S107: PIPE SIZINGS: | T107: SCH 80 ID (INCHES) | U107: SCH 40 ID (INCHES) | V107: SCH 160 ID (INCHES) | W107: CHEM NAME | Y107: SG @ 25 C | Z107: VP BAR | AA107: FLUID VIS @ 25 C | AH107: Milroyal D HPD 1-1/2" (MDH24_) | AL107: 3 | AM107: 0.475 | AO107: 0.47 | AR107: 2 | AT107: 2240092XXX | BB107: 1 | BE107: 5
S108: 1/4" | T108: 0.302 | U108: 0.364 | W108: Acétaldehyde | Y108: 0.7834 | Z108: 0.99 | AA108: 0.222 | AH108: Milroyal D MDP: (H2, H4, 02, 04) | AL108: 0 | AM108: 0.094 | AR108: 1 | BB108: 1 | BE108: 5
S109: 3/8" | T109: 0.423 | U109: 0.493 | W109: acetic acid 30% | Y109: 1.049 | Z109: 0.013 | AA109: 1.53 | AH109: Milroyal D MDP: (07, 10) | AL109: 0 | AM109: 0.283 | AR109: 1 | BB109: 1 | BE109: 5
S110: 1/2" | T110: 0.546 | U110: 0.622 | V110: 0.466 | W110: aniline | Y110: 1.2 | Z110: 0.0005 | AA110: 4.4 | AH110: Milroyal MDD02/03-XXXX | AL110: 9 | AM110: 0.095 | AR110: 2 | AX110: 1/8 | BB110: 10 | BE110: 0.073
S111: 3/4" | T111: 0.742 | U111: 0.824 | V111: 0.614 | W111: Ethyl acetate | Y111: 0.9 | Z111: 0.103 | AA111: 0.44 | AH111: mRoy XT | AL111: 9 | AM111: 0.283 | AR111: 1 | BB111: 17 | BE111: 0.059
S112: 1" | T112: 0.957 | U112: 1.049 | V112: 0.815 | W112: Acetone | Y112: 0.8 | Z112: 0.248 | AA112: 0.33 | AH112: mRoy XW | AL112: 9 | AM112: 0.475 | AR112: 2 | BB112: 56 | BE112: 0.059
S113: 1-1/4" | T113: 1.278 | U113: 1.38 | V113: 1.16 | W113: Aluminum Sulfate 48.5% | Y113: 1.336 | Z113: 0.006894757 | AA113: 30 | AH113: mRoy RS | AL113: 9 | AM113: 0.283 | AR113: 2 | AT113: 2920072000 | AX113: 1/4 | BB113: 24 | BE113: 0.063
S114: 1-1/2" | T114: 1.5 | U114: 1.61 | V114: 1.34 | W114: Ammonia 35% | Y114: 0.6818 | Z114: 0.01 | AA114: 1.285 | AH114: mRoy RB / RM | AL114: 9 | AM114: 0.47 | AO114: 0.469 | AR114: 1 | AT114: 2240087XXX | BB114: 40 | BE114: 0.1225407075
S115: 2" | T115: 1.939 | U115: 2.067 | V115: 1.69 | W115: Ammonia Hydroxide 35% | Y115: 0.9 | Z115: 63.32 | AA115: =SUM(0.9*1.425) -> 1.2825 | AH115: mRoy RH/RJ/RT | AL115: 9 | AM115: 0.283 | AR115: 2 | AT115: 2920072XXX | AX115: =3/8 -> 0.375 | AZ115: =3/8 -> 0.375 | BB115: 16 | BE115: 0.059
S116: 2-1/2" | T116: 2.323 | U116: 2.469 | V116: 2.125 | W116: Benzene | Y116: 0.88 | Z116: 0.1 | AA116: 0.604 | AH116: mRoy RA | AL116: 9 | AM116: 0.283 | AO116: 0.283 | AR116: 2 | AT116: 2240169XXX / 2920072XXX | AX116: =3/8 -> 0.375 | AZ116: =3/8 -> 0.375 | BB116: 24 | BE116: 0.089
S117: 3" | T117: 2.9 | U117: 3.068 | V117: 2.626 | W117: Carbon tetrachloride | Y117: 1.594 | Z117: 0.1217 | AA117: 0.96 | AH117: mRoy RP | AL117: 9 | AM117: 0.466 | AR117: 2 | AX117: =5/8 -> 0.625 | BB117: 24 | BE117: 0.089
S118: 3-1/2" | T118: 3.364 | U118: 3.548 | W118: Carbon dioxide 15% @ 0 C | Y118: 1.6 | Z118: 1.01 | AA118: 0.01 | AH118: Macroy D2 | AL118: 11 | AM118: 0.218 | AO118: 0.211 | AR118: 1 | AT118: 2240206XXX | BB118: 1 | BE118: 5
S119: 4" | T119: 3.826 | U119: 4.026 | V119: 3.44 | W119: Chloroforme | Y119: 1.47 | Z119: 0.213 | AA119: 0.53 | AH119: Macroy D4 | AL119: 11 | AM119: 0.359 | AO119: 0.215 | AR119: 1 | BB119: 1 | BE119: 5
S120: 5" | T120: 4.813 | U120: 5.047 | V120: 4.31 | W120: Chromic acid 505 | Y120: 1.703 | Z120: 0.0018 | AA120: 0.01 | AH120: Macroy D7/D8 | AL120: 11 | AM120: 0.415 | AO120: 0.472 | AR120: 1 | BB120: 1 | BE120: 5
S121: 6" | T121: 5.761 | U121: 6.065 | V121: 5.19 | W121: Citric acid | Y121: 1.665 | Z121: 0.01 | AA121: 1.011 | AH121: Macroy G5 | AL121: 11 | AM121: 0.415 | AO121: 0.472 | AR121: 1 | AT121: 2240173XXX | BB121: 1 | BE121: 5
S122: 8" | T122: 7.625 | U122: 7.981 | V122: 6.81 | W122: Cyclohexane | Y122: 0.78 | Z122: 0.127 | AA122: 0.94 | AH122: Macroy G6/G7 | AL122: 11 | AM122: 0.75 | AO122: 0.71 | AR122: 1 | BB122: 1 | BE122: 5
S123: 10" | T123: 9.564 | U123: 10.02 | W123: Dichloroethane | Y123: 1.25 | Z123: 0.087 | AA123: 0.8 | AH123: Maxroy B | AL123: 9 | AM123: 0.75 | AO123: 0.71 | AR123: 1 | BB123: 1 | BE123: 5
S124: 12" | T124: 11.376 | U124: 11.938 | W124: Dichloroethylene | Y124: 1.27 | Z124: 0.24 | AA124: 0.4454 | AH124: MBD20 | AL124: 9 | AM124: 0.473 | AR124: 1 | BB124: 10 | BE124: =11/16 -> 0.6875
S125: 14" | T125: 12.5 | U125: 13.124 | W125: Dichromate potassium | Y125: 2.69 | Z125: 0.453 | AA125: =SUM(1.03*0.974) -> 1.00322 | AH125: Milroyal B MBH (07,09,10,16) | AL125: 3 | AM125: 0.283 | AR125: 1 | AV125: 360 | BB125: 1 | BE125: 5
S126: 16" | T126: 14.314 | U126: 15 | W126: Di-iode | Y126: 4.92 | Z126: 0.00028 | AH126: Milroyal B MBH (20,24,) | AL126: 3 | AM126: 0.474 | AR126: 1 | AV126: 85 | BB126: 1 | BE126: 5
S127: 18" | T127: 16.126 | U127: 16.876 | W127: Dioxane | Y127: 1 | Z127: 0.041 | AA127: 1.2 | AH127: Milroyal B MBH (32,40) | AL127: 3 | AM127: 0.75 | AR127: 1 | AV127: 45 | BB127: 1 | BE127: 5
S128: 20" | T128: 17.938 | U128: 18.814 | W128: Dioxyde of souffre CAS 2025884) | Y128: 0.01 | Z128: 2.4 | AA128: 1.2 | AH128: Milroyal B MBH (56,64) | AL128: 3 | AM128: 1.125 | AR128: 1 | AV128: 15 | BB128: 1 | BE128: 5
S129: 24" | T129: 21.564 | U129: 22.626 | W129: Distilled water | Y129: 0.998 | Z129: 0.023 | AA129: 0.01 | AH129: Milroyal C MCH (16) | AL129: 3 | AM129: 0.474 | AR129: 1 | AV129: 100 | BB129: 1 | BE129: 5
W130: Edta | Y130: 0.86 | Z130: 2.4 | AH130: Milroyal C MCH (20,24,32) | AL130: 3 | AM130: 0.75 | AR130: 1 | AV130: 50 | BB130: 1 | BE130: 5
S131: Y | T131: SCH 40 | W131: Ethanol | Y131: 0.7893 | Z131: 0.059 | AA131: 1.2 | AH131: Milroyal C MCH (40,56) | AL131: 3 | AM131: 1.125 | AR131: 1 | AV131: 30 | BB131: 1 | BE131: 5
S132: N | T132: SCH 80 | W132: Ethyl ether | Y132: 0.7134 | Z132: 0.5863 | AA132: 0.23 | AH132: Milroyal C MCH (80,92) | AL132: 3 | AM132: 1.9 | AR132: 1 | AV132: 9 | BB132: 1 | BE132: 5
S133: =INDEX(S131:S132,J73) -> N | T133: SCH 160 | W133: Ethylene | Y133: 1.1135 | Z133: 0.0073 | AA133: 21 | AH133: Milroyal C Disc MCD (18,24) | AL133: 9 | AM133: 0.844 | AR133: 1 | BB133: 42 | BE133: 0.1875
W134: Hydrofluorosilicic acid 32% | Y134: 1.27 | Z134: 0.01 | AA134: 0.01 | AH134: Centrac S - 175spm-all sizes | AL134: 9 | AM134: 0.474 | AO134: 0.275 | AR134: 1 | AT134: 2240088016 | AX134: 5/8 | BB134: 24 | BE134: 0.109
W135: Formaldehyde 37% | Y135: 0.8135 | Z135: 1.01 | AA135: 0.01 | AH135: MaxRoyal Fix. | AL135: 9 | AR135: 1 | BB135: 1 | BE135: 5
W136: Formic acid 50% | Y136: 1.22 | Z136: 0.04 | AA136: 1.804 | AH136: MaxRoyal Var. | AL136: 9 | AR136: 1 | BB136: 1 | BE136: 5
W137: Hexane | Y137: 0.66 | Z137: 0.16 | AA137: 0.31 | AH137: Primeroyal L HPD (20, 25 mm) | AL137: 9 | AM137: =9.52*0.75*0.03936996 -> 0.2811015144 | AR137: 2 | AV137: =50*14.5 -> 725 | BB137: 1 | BE137: 5
W138: Hydrazine 35% | Y138: 1.0011 | Z138: 1.3322 | AA138: 0.97 | AH138: Primeroyal L HPD (25, 32, 40 mm) | AL138: 9 | AM138: =15.9*0.75*0.03936996 -> 0.469486773 | AR138: 1 | AV138: =50*14.5 -> 725 | BB138: 1 | BE138: 5
W139: Hydrobromique acid 50% | Y139: 1.49 | Z139: 0.233 | AA139: 10 | AH139: Primeroyal L HPD (40, 63 mm) | AL139: 9 | AM139: =25*0.75*0.03936996 -> 0.73818675 | AR139: 1 | AV139: =14*14.5 -> 203 | BB139: 1 | BE139: 5
W140: Hydrochloric acid 36% | Y140: 1.18 | Z140: 0.2 | AA140: 1.998 | AH140: Primeroyal L HPD (115 mm) | AL140: 9 | AM140: =40*0.75*0.03936996 -> 1.1810988 | AR140: 1 | AV140: =4.3*14.5 -> 62.35 | BB140: 1 | BE140: 5
W141: Hydrofluoric acid 40% | Y141: 0.98 | Z141: 0.4 | AA141: 0.53 | AH141: Primeroyal N HPD (25 mm) | AL141: 9 | AM141: =15.9*0.75*0.03936996 -> 0.469486773 | AR141: 2 | AV141: =50*14.5 -> 725 | BB141: 1 | BE141: 5
W142: Hydrogen peroxide 50% | Y142: 1.194 | Z142: 0.00244 | AA142: 0.01 | AH142: Primeroyal N HPD (32, 40, 50, 55 mm) | AL142: 9 | AM142: =25*0.75*0.03936996 -> 0.73818675 | AR142: 1 | AV142: =28*14.5 -> 406 | BB142: 1 | BE142: 5
W143: Magnesium Chloride | Y143: 2.32 | Z143: 0.01 | AA143: 1.022 | AH143: Primeroyal N HPD (55,63,80,90,100 mm) | AL143: 9 | AM143: =40*0.75*0.03936996 -> 1.1810988 | AR143: 1 | AV143: =8*14.5 -> 116 | BB143: 1 | BE143: 5
W144: Methanol | Y144: 0.7915 | Z144: 0.5332895 | AA144: 0.59 | AH144: Primeroyal N HPD (125,145 mm) | AL144: 9 | AM144: =73*0.75*0.03936996 -> 2.15550531 | AR144: 1 | AV144: =4*14.5 -> 58 | BB144: 1 | BE144: 5
W145: Methyl alcohol | Y145: 0.79 | Z145: 0.129 | AA145: 0.59 | AH145: Primeroyal R HPD (40 mm) | AL145: 9 | AM145: =25*0.75*0.03936996 -> 0.73818675 | AR145: 2 | AV145: 725 | BB145: 1 | BE145: 5
W146: Mercury | Y146: 13.55 | Z146: 1.6e-05 | AA146: 1.55 | AH146: Primeroyal R HPD (50, 55 mm) | AL146: 9 | AM146: =40*0.75*0.03936996 -> 1.1810988 | AR146: 1 | AV146: 725 | BB146: 1 | BE146: 5
W147: Morpholine | Y147: 1 | Z147: 0.009332 | AA147: 2.23 | AH147: Primeroyal R HPD (63,70,80,90,100 mm) | AL147: 9 | AM147: =50*0.75*0.03936996 -> 1.4763735 | AR147: 1 | AV147: 725 | BB147: 1 | BE147: 5
W148: Nitric acid 40% | Y148: 1.4 | Z148: 0.0094 | AA148: 1.77 | AH148: Primeroyal R HPD (115,125,130 mm) | AL148: 9 | AM148: =70*0.75*0.03936996 -> 2.0669229 | AR148: 1 | AV148: 725 | BB148: 1 | BE148: 5
W149: Oxalic acid 40% | Y149: 1.9 | Z149: 0.01 | AA149: 1.17 | AH149: Primeroyal R HPD (145, 160 mm) | AL149: 9 | AM149: =110*0.75*0.03936996 -> 3.2480217 | AR149: 1 | AV149: 725 | BB149: 1 | BE149: 5
W150: Dioxyde of manganese 83-85% | Y150: 5.03 | Z150: 0.01 | AA150: 1.2 | AH150: MIL G (MGH) - 1-1/4" | AL150: 6 | AM150: 0.279 | AR150: 1 | AV150: 100 | BB150: 1 | BE150: 5
W151: Oxygenated water 50% | Y151: 1.2 | Z151: 0.018 | AA151: 1.8 | AH151: MIL G (MGH) - ALL OTHERS" | AL151: 6 | AM151: 0.472 | AR151: 1 | AV151: 100 | BB151: 1 | BE151: 5
W152: Phenol | Y152: 1.057 | Z152: 0.04666 | AA152: 12.7 | AH152: CBH1611-C1 7/8" SS HARD | AL152: 3 | AM152: 0.47 | AR152: 1 | AT152: 22400136000 | AV152: 100 | AX152: 5/8 | BB152: 1 | BE152: 5
W153: Phosphoric acid 85% | Y153: 1.834 | Z153: 0.004 | AA153: 1.008 | AH153: CBH1611-C2 7/8" SS HARD | AL153: 3 | AM153: 0.47 | AR153: 2 | AT153: 22400136000 | AV153: 100 | AX153: 5/8 | BB153: 1 | BE153: 5
W154: Potassium chloride | Y154: 1.987 | Z154: 0.01 | AA154: 0.998 | AH154: CBH1611-11 | AL154: 3 | AM154: 0.474 | AR154: 1 | AT154: 2240088016 | AV154: 100 | AX154: 5/8 | BB154: 1 | BE154: 5
W155: Potassium Hydroxide 50% | Y155: 2.044 | Z155: 0.01 | AA155: 1.008 | AH155: CBH1611-22 | AL155: 3 | AM155: 0.474 | AR155: 2 | AT155: 2240088016 | AV155: 100 | AX155: 5/8 | BB155: 1 | BE155: 5
W156: Potassium permanganate | Y156: 2.703 | Z156: 0.01 | AA156: 0.999 | AH156: CBH2011-C1 1-1/4" SS HARD | AL156: 3 | AM156: 0.474 | AR156: 1 | AT156: 22400136000 | AV156: 100 | BB156: 1 | BE156: 5
W157: Acid orthophosphorique | Y157: 1.53 | Z157: 0.003 | AH157: CBH2011-C2 1-1/4" SS HARD | AL157: 3 | AM157: 0.474 | AR157: 2 | AT157: 22400136000 | AV157: 100 | BB157: 1 | BE157: 5
W158: Pyridine | Y158: 0.98 | Z158: 0.02 | AA158: 0.95 | AH158: CBH2011-11 1-1/4" SS | AL158: 3 | AM158: 0.474 | AR158: 1 | AT158: 2240088016 | AV158: 100 | AX158: 5/8 | BB158: 1 | BE158: 5
W159: Sodium carbonate 35% | Y159: 2.532 | Z159: 0.01 | AA159: 1.023 | AH159: CBH2011-22 1-1/4" SS | AL159: 3 | AM159: 0.474 | AR159: 2 | AT159: 2240088016 | AV159: 100 | AX159: 5/8 | BB159: 1 | BE159: 5
W160: Sodium Chloride | Y160: 2.165 | Z160: 0.01 | AA160: 0.56 | AH160: CBH2411-C1 1-1/2" SS HARD | AL160: 3 | AM160: 0.474 | AR160: 1 | AT160: 2240136000 | AV160: 70 | BB160: 1 | BE160: 5
W161: Sodium Chlorite 30% | Y161: 1.87 | Z161: 0.01 | AA161: 1.002 | AH161: CBH2411-C2 1-1/2" SS HARD | AL161: 3 | AM161: 0.474 | AR161: 2 | AT161: 2240136000 | AV161: 70 | BB161: 1 | BE161: 5
W162: Sodium hydroxide 50% | Y162: 2.13 | Z162: 0.01 | AA162: 120 | AH162: CBH2411-H2 1-1/2" SS | AL162: 3 | AM162: 0.474 | AR162: 2 | AT162: 2240088016 | AV162: 70 | BB162: 1 | BE162: 5
W163: Sodium hypochlorite | Y163: 1.25 | Z163: 0.0075 | AA163: 20 | AH163: CBH2411-11 1-1/2" SS | AL163: 3 | AM163: 0.474 | AR163: 1 | AT163: 2240088016 | AV163: 70 | AX163: 5/8 | BB163: 1 | BE163: 5
W164: Sodium sulphite | Y164: 1.48 | Z164: 0.004 | AA164: 4 | AH164: CBH2411-22 1-1/2" SS | AL164: 3 | AM164: 0.474 | AR164: 2 | AT164: 2240088016 | AV164: 70 | AX164: 5/8 | BB164: 1 | BE164: 5
W165: Sulfuric acid 96% | Y165: 1.84 | Z165: 0.013 | AA165: 19.8 | AH165: CBH3211-11 2" SS | AL165: 3 | AM165: 0.75 | AR165: 1 | AT165: 2240089016 | AV165: 40 | AX165: 1 | BB165: 1 | BE165: 5
W166: Tartaric acid | Y166: 1.788 | Z166: 0.01 | AA166: 1.021 | AH166: CBH3211-22 2" SS | AL166: 3 | AM166: 0.75 | AR166: 2 | AT166: 2240089016 | AV166: 40 | AX166: 1 | BB166: 1 | BE166: 5
W167: Toulene | Y167: 0.8661 | Z167: 0.0292 | AA167: 0.58 | AH167: CBH3211-LS 2" SS SLURRY | AL167: 3 | AM167: 0.75 | AR167: 1 | AT167: 2240139000 | AV167: 40 | AX167: 1 | BB167: 1 | BE167: 5
W168: Trichloroethane | Y168: 1.34 | Z168: 0.133 | AA168: 0.79 | AH168: CBH4011-11 2-1/2" SS | AL168: 3 | AM168: 0.75 | AR168: 1 | AT168: 2240089016 | AV168: 40 | AX168: 1 | BB168: 1 | BE168: 5
W169: Trichloroethylene | Y169: 1.46 | Z169: 0.077 | AA169: 0.55 | AH169: CBH4011-22 2-1/2" SS | AL169: 3 | AM169: 0.75 | AR169: 2 | AT169: 2240089016 | AV169: 25 | AX169: 1 | BB169: 1 | BE169: 5
W170: Triethylene glycol | Y170: 1.127 | Z170: 0.02 | AA170: 1.2 | AH170: CBH5611-11 3-1/2" SS | AL170: 3 | AM170: 1.125 | AR170: 1 | AT170: 2240084016 | AV170: 25 | AX170: 1 | BB170: 1 | BE170: 5
W171: Urea | Y171: 1.335 | Z171: 0.01 | AA171: 1.005 | AH171: CBH5611-22 3-1/2" SS | AL171: 3 | AM171: 1.125 | AR171: 2 | AT171: 2240084016 | AV171: 15 | AX171: 1.5 | BB171: 1 | BE171: 5
W172: Xylene | Y172: 0.864 | Z172: 0.799 | AA172: 0.809 | AH172: CBH5611-C1 3-1/2" SS | AL172: 3 | AM172: 1.125 | AR172: 1 | AT172: 2240142000 | AV172: 15 | AX172: 1.5 | BB172: 1 | BE172: 5
W173: Other - Enter Chemical Name & Parameters Below | AH173: CBH5651-1C 3-1/2" SS HAS C | AL173: 3 | AM173: 1.125 | AR173: 1 | AT173: 2240084026 | AV173: 15 | AX173: 1.5 | BB173: 1 | BE173: 5
W174: FERRIC CHLORIDE | Y174: 1.42 | Z174: 0.01 | AA174: 12 | AH174: CBH1622-22 7/8" PVC | AL174: 3 | AM174: 0.19 | AO174: 0.19 | AR174: 2 | AT174: 920064071 | AV174: 100 | AX174: 5/8 | BB174: 1 | BE174: 5
W175: WATER | Y175: 1 | Z175: 0.01 | AA175: 1 | AH175: CBH2471-22 1-1/2" PVC | AL175: 3 | AM175: 0.75 | AO175: 0.75 | AR175: 2 | AT175: 2240091078 | AV175: 70 | AX175: 1 | BB175: 1 | BE175: 5
W176: RESET | Y176: =INDEX($Y108:$Y175,$E$23) -> 1 | Z176: =INDEX($Z108:$Z175,$E$23)*14.50377 -> 0.1450377 | AA176: =INDEX($AA108:$AA175,$E$23) -> 1 | AE176: MULTIPLEXING FACTOR | AF176: =IF($J$38=1,1,(IF($J$38=2,0.55,(IF($J$38=3,0.2,(IF($J$38=4,0.44,(IF($J$38=5,0.1,(IF($J$38=6,0.3,(IF($J$38=7,0.07,(IF($J$38=8,0.23,1))))))))))))))) -> 1 | AG176: DO NOT REMOVE THIS | AH176: CBH3272-22 2" PVC | AL176: 3 | AM176: 0.75 | AO176: 0.75 | AR176: 2 | AT176: 2240091078 | AV176: 40 | AX176: 1 | BB176: 1 | BE176: 5
W177: Hydrofluosilicic Acid | Y177: 1.3 | Z177: 0.1 | AA177: 6.5 | AH177: CBH4022-22 2-1/2" PVC | AL177: 3 | AM177: 0.75 | AO177: 0.75 | AR177: 2 | AT177: 2240091071 | AV177: 25 | AX177: 1 | BB177: 1 | BE177: 5
W178: Zinc Orthophosphate | Y178: 1.1 | Z178: 0.1 | AA178: 10 | AH178: CBH5672-22 3-1/2" PVC | AL178: 3 | AM178: 1.125 | AO178: 1.125 | AR178: 2 | AT178: 21817 | AV178: 15 | AX178: 1.5 | BB178: 1 | BE178: 5
AH179: EV1---03D/04D/06D | AL179: 10 | AM179: 0.277 | AR179: 1 | BB179: 8 | BE179: 0.438
AH180: EV1---10D/14D/20D | AL180: 10 | AM180: 0.277 | AR180: 1 | BB180: 8 | BE180: 0.438
AH181: EV1---28D/38D | AL181: 10 | AM181: 0.277 | AR181: 1 | BB181: 8 | BE181: 0.438
AH182: EVP---03D/04D/06D | AL182: 10 | AM182: 0.277 | AR182: 1 | BB182: 8 | BE182: 0.438
AH183: EVP---10D/14D/20D | AL183: 10 | AM183: 0.277 | AR183: 1 | BB183: 8 | BE183: 0.438
AH184: EVP---28D/38D | AL184: 10 | AM184: 0.277 | AR184: 1 | BB184: 8 | BE184: 0.438
AH185: EVA | AL185: 10 | AM185: 0.277 | AO185: 0.277 | AR185: 1 | AT185: 6137PB-XX | AX185: 1/4 | BB185: 8 | BE185: 0.438
AH186: Milroyal B MBP (05,07,AF,AH) | AL186: 0 | AM186: 0.187 | AR186: 2 | AV186: 1450 | AX186: 1/4 | BB186: 1 | BE186: 5
AH187: Milroyal B MBP (10) | AL187: 0 | AM187: 0.281 | AR187: 1 | AV187: 750 | AX187: 3/8 | BB187: 1 | BE187: 5
AH188: Milroyal B MBP (14, 18,) | AL188: 0 | AM188: 0.468 | AR188: 1 | AV188: 265 | AX188: 5/8 | BB188: 1 | BE188: 5
AH189: Milroyal B MBP (24, 28) | AL189: 0 | AM189: 0.772 | AR189: 1 | AV189: 125 | AX189: 3/4 | BB189: 1 | BE189: 5
AH190: Milroyal B MBP (40) | AL190: 0 | AM190: 1.0625 | AR190: 1 | AV190: 70 | AX190: 1-1/2 | BB190: 1 | BE190: 5
AH191: Milroyal C MCP (07, 10, BA) | AL191: 0 | AM191: 0.281 | AR191: 2 | AV191: 3800 | AX191: 3/8 | BB191: 1 | BE191: 5
AH192: Milroyal C MCP (AH) | AL192: 0 | AM192: 0.25 | AR192: 1 | AV192: 3800 | AX192: 3/8 | BB192: 1 | BE192: 5
AH193: Milroyal C MCP (14, 18) | AL193: 0 | AM193: 0.656 | AR193: 2 | AV193: 1200 | AX193: 7/8 | BB193: 1 | BE193: 5
AH194: Milroyal C MCP (24, 32) | AL194: 0 | AM194: 0.844 | AR194: 2 | AV194: 395 | AX194: 1-1/8 | BB194: 1 | BE194: 5
AH195: Milroyal C MCP ( 40, 56, 71) | AL195: 0 | AM195: 1.0625 | AR195: 2 | AV195: 85 | AX195: 1-1/2 | BB195: 1 | BE195: 5

Sheet DISCHARGE RESULTS
M1: Document: | N1: ='NPIP SUCTION RESULTS'!$N$1 -> 51518
M2: Revision: | N2: ='NPIP SUCTION RESULTS'!$N$2 -> A
B3: PUMP SYSTEM ANALYSIS TOOL - DISCHARGE CONDITIONS
B4: PUMP DISCHARGE TO INJECTION POINT PRESSURE LOSSES CALCULATOR
B6: Calculations used in this program are based on a combination of theoritical anaylses and results of extensive fluids laboratory testing. Because of simplifying assumptions made in equations, variations in chemical properties, variations in pipe characteristics, and other factors, Milton Roy L.L.C. cannot accept any responsibility for usefulness of calculated results. The user is cautioned to verify results from this program with independent methods. This calculator is applicable only for Milton Roy motor driven hydraulic or mechanical actuated diaphram or packed plunger pumps. DO NOT USE THIS CALCULATOR FOR ANY SOLENOID DRIVEN OR AIR-DRIVEN METERING PUMPS.
B8: NOTES and COLOR KEY
C9: ▪ | D9: Cell Color Key: | F9: Required Data | H9: Optional Data | J9: Calculated Data | L9: Final Results Data
C10: ▪ | D10: All pressures are in psia as indicated
C11: ▪ | D11: All flow rates are in gallons per hour | K11: Note: Be sure all data from previous calculations has been cleared before starting each new calculation.
C12: ▪ | D12: Lengths and height are in feet
C13: ▪ | D13: Pipe Diameters are in inches.
B15: PROJECT DATA
C17: Project Name: | D17: ='NPIP SUCTION RESULTS'!E17 -> NPSH CALC FOR ??? PUMPS | J17: Date: | K17: =TODAY() -> 2020-06-04
C19: Prepared by: | D19: ='NPIP SUCTION RESULTS'!E19 -> ENTER YOUR NAME
B21: CHEMICAL and SITE DATA
C23: Chemical selected on Suction Page: | E23: 65 | I23: OR chemical entered manually on suction page: | L23: ='NPIP SUCTION RESULTS'!$L$23 -> 0
D25: Vapor Pressure psia: | F25: S.G.: | G25: Viscosity cps. | J25: Elevation above sea level entered on Suction page: | L25: ='NPIP SUCTION RESULTS'!$F$30 -> 0 | N25: Feet
D26: ='NPIP SUCTION RESULTS'!$E$26 -> 0.1450377 | F26: ='NPIP SUCTION RESULTS'!$G$26 -> 1 | G26: ='NPIP SUCTION RESULTS'!$H$26 -> 1
C28: 1. Enter net height difference from pump discharge elev. to discharge injection point elev. (UPWARD = POSITIVE, DOWNWARD - NEGATIVE): | L28: 0 | M28: Feet
B29: PUMP DATA
D30: Pump data from suction worksheet: | G30: Flow: (gph) | H30: ='NPIP SUCTION RESULTS'!$D$42 -> 50 | I30: Speed: (spm) | J30: ='NPIP SUCTION RESULTS'!$G$42 -> 45 | K30: Pump selected: | L30: =INDEX('NPIP SUCTION RESULTS'!AH105:AH195,'NPIP SUCTION RESULTS'!$D$38) -> Milroyal D HPD 1" (MDH16_)
C31: 2. Enter maximum discharge pressure from pump: (obtain value from flow/pressure tables from applicable Milton Roy pump brochure or data tables and backpressure valve setting) | L31: 150 | M31: PSIG
B33: Did you know that: • Frictional and acceleration pressure losses also occur on the discharge side of the metering pump, which will affect pump performance at the discharge point. • A discharge pulsation dampener (WHEN OPERATING PROPERLY) will significantly reduce acceleration losses in the discharge piping. • NPSH calculator determines pressure losses from each pump discharge to its injection point and will notify if there is sufficient pressure at the injection point. • Unlike centrifugal pumps, suction pressure (if adequate) will not affect discharge pressure in metering pumps. • Unlike centrifugal pumps, metering pump flowrate change is extremely minor due to discharge backpressure changes. • Just like the suction side; elbows, tees, flowmeters and valves affect friction losses, but not acceleration losses • Just like the suction side; pipe lengths, pipe diameters and flowrate affect both frictional and acceleration losses. • Discharge fluid flow siphoning may occur when lengthy discharge piping is open to atmospheric pressure and is arranged in a flat or down hill layout. Siphoning can occur even with a backpressure valve near the pump discharge. Siphoning will prevent the pump from proper metering. This happens because as a mass of process fluid builds up in discharge line, it will suddenly break free and pour out the open end, causing a momentary vacuum drag condition in the discharge piping, which in turn , causes excessive flow to pour past the pump ball checks. This situation can be avoided by installing a backpressure valve as close to the injection point as possible, which will keep most of the discharge pipe at a steady back pressure. • Pressure gauges and switches should be sized so that their ranges are 25-50% above the max pressure rating of the pump, so that they will not be damaged if overpresurization occurs. For example, a 200 psig gauge should be used (if available) for a pump with max pressure rating of 150 psig.
B38: 3. ENTER DISCHARGE SIDE PIPING PARAMETERS:
B39: The calculator allows data to be entered for up to 3 different sections of discharge pipe. This is important if pipe diameter changes between the pump and the injection point. When not used or not applicable, enter "0" in the cell.
C42: Description | F42: Section 1 | H42: Section 2 | J42: Section 3
C43: Select Pipe Schedule: | F43: 2 | H43: 2 | J43: 2
C44: Select Pipe Size | F44: 3 | H44: 3 | J44: 3
C45: Calculated pipe ID inches | F45: =IF(F43=1,INDEX($S$118:$S$139,F44),IF(F43=2,INDEX($R$118:$R$139,F44),IF(F43=3,INDEX($T$118:$T$139,F44)))) -> 0.546 | H45: =IF(H43=1,INDEX($S$118:$S$139,H44),IF(H43=2,INDEX($R$118:$R$139,H44),IF(H43=3,INDEX($T$118:$T$139,H44)))) -> 0.546 | J45: =IF(J43=1,INDEX($S$118:$S$139,J44),IF(J43=2,INDEX($R$118:$R$139,J44),IF(J43=3,INDEX($T$118:$T$139,J44)))) -> 0.546 | L45: Calculation Fields - CANNOT BE ALTERED
C46: Enter pipe actual length | F46: 100 | G46: feet | H46: 0 | I46: feet | J46: 0 | K46: feet
C47: # of 90° elbows | F47: 0 | H47: 0 | J47: 0 | L47: =SUM(30*F$45/12)*F47 -> 0 | M47: =SUM(30*H$45/12)*H47 -> 0 | N47: =SUM(30*J$45/12)*J47 -> 0
C48: # of 45° elbows | F48: 0 | H48: 0 | J48: 0 | L48: =SUM(16*F$45/12)*F48 -> 0 | M48: =SUM(16*H$45/12)*H48 -> 0 | N48: =SUM(16*J$45/12)*J48 -> 0
C49: # of external ball check valves | F49: 0 | H49: 0 | J49: 0 | L49: =SUM(150*F$45/12)*F49 -> 0 | M49: =SUM(150*H$45/12)*H49 -> 0 | N49: =SUM(150*J$45/12)*J49 -> 0
C50: # of tees - run flow | F50: 0 | H50: 0 | J50: 0 | L50: =SUM(20*F$45/12)*F50 -> 0 | M50: =SUM(20*H$45/12)*H50 -> 0 | N50: =SUM(20*J$45/12)*J50 -> 0
C51: # of tees - branch flow | F51: 0 | H51: 0 | J51: 0 | L51: =SUM(60*F$45/12)*F51 -> 0 | M51: =SUM(60*H$45/12)*H51 -> 0 | N51: =SUM(60*J$45/12)*J51 -> 0
C52: # of single reduction reducer bushings | F52: 0 | H52: 0 | J52: 0 | L52: =SUM(15.5*F$45/12)*F52 -> 0 | M52: =SUM(15.5*H$45/12)*H52 -> 0 | N52: =SUM(15.5*J$45/12)*J52 -> 0
C53: # of manual Valves | F53: 0 | H53: 0 | J53: 0 | L53: =SUM((('NPIP SUCTION RESULTS'!$D$42/60)*27700*(F$45^2))/((F$54^2)*'NPIP SUCTION RESULTS'!$G$42*$F$26)*F$53) -> 0 | M53: =SUM((('NPIP SUCTION RESULTS'!$D$42/60)*27700*(H$45^2))/((H$54^2)*'NPIP SUCTION RESULTS'!$G$42*$F$26)*H$53) -> 0 | N53: =SUM((('NPIP SUCTION RESULTS'!$D$42/60)*27700*(J$45^2))/((J$54^2)*'NPIP SUCTION RESULTS'!$G$42*$F$26)*J$53) -> 0
C54: CV of manual Valve above | F54: 9 | H54: 9 | J54: 9
C56: Calculated equivalent pipe length | F56: =SUM(L46:L54) -> 0 | G56: feet | H56: =SUM(M46:M54) -> 0 | I56: feet | J56: =SUM(N46:N54) -> 0 | K56: feet
C57: Friction pressure drop for section without dampener | F57: =(0.0000143*'NPIP SUCTION RESULTS'!$D$42*'NPIP SUCTION RESULTS'!$H$26*F46/F45^4)+(0.0000143*'NPIP SUCTION RESULTS'!$D$42*'NPIP SUCTION RESULTS'!$H$26*F56/F45^4) -> 0.8045174548 | G57: psi | H57: =(0.0000143*'NPIP SUCTION RESULTS'!$D$42*'NPIP SUCTION RESULTS'!$H$26*H46/H45^4)+(0.0000143*'NPIP SUCTION RESULTS'!$D$42*'NPIP SUCTION RESULTS'!$H$26*H56/H45^4) -> 0 | I57: psi | J57: =(0.0000143*'NPIP SUCTION RESULTS'!$D$42*'NPIP SUCTION RESULTS'!$H$26*J46/J45^4)+(0.0000143*'NPIP SUCTION RESULTS'!$D$42*'NPIP SUCTION RESULTS'!$H$26*J56/J45^4) -> 0 | K57: psi
C58: Acceleration Pressure Drop for pipe section (without dampener): | F58: =('NPIP SUCTION RESULTS'!$G$42*'NPIP SUCTION RESULTS'!$D$42*'NPIP SUCTION RESULTS'!$G$26*F46)/(27700*F45^2)*$AD$186 -> 27.24692295 | G58: psi | H58: =('NPIP SUCTION RESULTS'!$G$42*'NPIP SUCTION RESULTS'!$D$42*'NPIP SUCTION RESULTS'!$G$26*H46)/(27700*H45^2)*$AD$186 -> 0 | I58: psi | J58: =('NPIP SUCTION RESULTS'!$G$42*'NPIP SUCTION RESULTS'!$D$42*'NPIP SUCTION RESULTS'!$G$26*J46)/(27700*J45^2)*$AD$186 -> 0 | K58: psi
C59: Friction pressure drop for pipe section (with dampener): | F59: =SUM(F57*0.2) -> 0.160903491 | G59: psi | H59: =SUM(H57*0.2) -> 0 | I59: psi | J59: =SUM(J57*0.2) -> 0 | K59: psi
C60: Acceleration Pressure Drop for pipe section (with dampener): | F60: =SUM(F58*0.2)*$AD$186 -> 5.44938459 | G60: psi | H60: =SUM(H58*0.2)*$AD$186 -> 0 | I60: psi | J60: =SUM(J58*0.2)*$AD$186 -> 0 | K60: psi
C62: 4. Select if pump discharge pulsation dampener is provided (Y/N): | H62: 1
B64: CALCULATIONS
D65: Starting discharge pressure inside pump: | L65: =L31 -> 150 | M65: PSIG
C66: Total frictional pressure loss through all piping sections: | L66: =IF(Q144="Y",SUM(F59,H59,J59),SUM(F57,H57,J57)) -> 0.160903491 | M66: PSI
C67: Total acceleration pressure loss through all piping sections: | L67: =IF(Q144="Y",SUM(F60,H60,J60),SUM(F58,H58,J58)) -> 5.44938459 | M67: PSI
C68: Contour Plate Friction Loss: | L68: =NPSH!B28 -> 2.185494515e-06 | M68: PSI
C69: Operating Safety margin (entered above): | L69: ='NPIP SUCTION RESULTS'!$H$47 -> 0 | M69: PSI
C70: Check Valve Pressure Loss: | L70: =NPSH!B20 -> 0.1072574421 | M70: PSI
C71: Pressure Loss OR Gain due to discharge height difference from pump to injection point: | L71: =SUM(L28/2.31*'NPIP SUCTION RESULTS'!G26) -> 0 | M71: PSI
C72: Max Pressure at discharge piping injection point after all Frictional related losses: | L72: =SUM(L65-L66-L68-L69-L70-L71) -> 149.7318369 | M72: PSIG
C73: Max Pressure at discharge piping injection point after all Acceleration related losses: | L73: =SUM(L65-L67-L69-L71) -> 144.5506154 | M73: PSIG
B74: 5. | C74: Enter required discharge injection point pressure here. Enter "0" if discharging into atmospheric conditions. This is the target pressure to exceed. | L74: 30 | M74: PSIG
B76: CONCLUSIONS - GO / NO GO:
C78: * Available injection point pressure based on frictional losses: | H78: =IF(L72>$L$74,"'OK FOR USE'","'INADEQUATE - Need larger diameter piping, shorter piping, slower pump speed to plunger diameter ratio, or higher pump discharge pressure setting.'") -> 'OK FOR USE'
C79: * Available injection point pressure based on acceleration losses: | H79: =IF(L73>$L$74,"'OK FOR USE'","'INADEQUATE - Need larger diameter piping, shorter piping, slower pump speed to plunger diameter ratio, or higher pump discharge pressure setting.'") -> 'OK FOR USE'
B81: ENTER ADDITIONAL COMMENTS HERE
B84: For suggestions and contacts: | E84: Email: Info@miltonroy.com | H84: Phone: 215-441-0800 | J84: Fax: 215-441-0735
Q95: WILLIAMS & HAZEN FORMULA FOR SMOOTH/STEADY TURBULENT FLOW
Q96: DP= 4335 (0.2083)(100/150)^1.852 X ((Q)^1.852)/((DI)^1.852)XL/100
Q97: STEADY FLOWRATE DP CALCULATION
Q101: Q = 104 GPH X 2 PUMPS + 57 GPH (1 PUMP) = 265 GPH / 60 = 4.42 GPM
Q105: DP=0.4335*10.44*L*(Q^1.85/(C^1.85*Di^4.8655)
Q106: L=LENGTH OF PIPE IN FEET
Q107: C=SPECIFIC ROUGHNESS CONSTANT FOR CLEAN PIPING (SMOOTH SS=140, CONCRETE=120, CAST IRON=130, COPPER=140, PLASTIC=140 (SUBTRACT 30% FOR DIRTY PIPE)
Q108: Di=PIPE INTERNAL DIAMETER, INCHES
Q116: SCH 80 PLASTIC | U116: CHEMICAL PARAMETERS
Q117: PIPE SIZINGS: | R117: SCH 80 ID (INCHES) | S117: SCH 40 ID (INCHES) | T117: SCH 160 ID (INCHES) | U117: CHEM NAME | W117: SG @ 25 C | X117: VP BAR | Y117: FLUID VIS @ 25 C
Q118: 1/4" | R118: 0.302 | S118: 0.364 | U118: Acétaldehyde | W118: 0.7834 | X118: 0.99 | Y118: 0.222
Q119: 3/8" | R119: 0.423 | S119: 0.493 | U119: acetic acid 30% | W119: 1.049 | X119: 0.013 | Y119: 1.53
Q120: 1/2" | R120: 0.546 | S120: 0.622 | T120: 0.466 | U120: aniline | W120: 1.2 | X120: 0.0005 | Y120: 4.4
Q121: 3/4" | R121: 0.742 | S121: 0.824 | T121: 0.614 | U121: Ethyl acetate | W121: 0.9 | X121: 0.103 | Y121: 0.44
Q122: 1" | R122: 0.957 | S122: 1.049 | T122: 0.815 | U122: Acetone | W122: 0.8 | X122: 0.248 | Y122: 0.33
Q123: 1-1/4" | R123: 1.278 | S123: 1.38 | T123: 1.16 | U123: Aluminum Sulfate 48.5% | W123: 1.336 | X123: 0.006894757 | Y123: 30
Q124: 1-1/2" | R124: 1.5 | S124: 1.61 | T124: 1.34 | U124: Ammonia 35% | W124: 0.6818 | X124: 0.01 | Y124: 1.285
Q125: 2" | R125: 1.939 | S125: 2.067 | T125: 1.69 | U125: Ammonia Hydroxide 35% | W125: 0.9 | X125: 63.32 | Y125: =SUM(0.9*1.425) -> 1.2825
Q126: 2-1/2" | R126: 2.323 | S126: 2.469 | T126: 2.125 | U126: Benzene | W126: 0.88 | X126: 0.1 | Y126: 0.604
Q127: 3" | R127: 2.9 | S127: 3.068 | T127: 2.626 | U127: Carbon tetrachloride | W127: 1.594 | X127: 0.1217 | Y127: 0.96
Q128: 3-1/2" | R128: 3.364 | S128: 3.548 | U128: Carbon dioxide 15% @ 0 C | W128: 1.6 | X128: 1.01 | Y128: 0.01
Q129: 4" | R129: 3.826 | S129: 4.026 | T129: 3.44 | U129: Chloroforme | W129: 1.47 | X129: 0.213 | Y129: 0.53
Q130: 5" | R130: 4.813 | S130: 5.047 | T130: 4.31 | U130: Chromic acid 505 | W130: 1.703 | X130: 0.0018 | Y130: 0.01
Q131: 6" | R131: 5.761 | S131: 6.065 | T131: 5.19 | U131: Citric acid | W131: 1.665 | X131: 0.01 | Y131: 1.011
Q132: 8" | R132: 7.625 | S132: 7.981 | T132: 6.81 | U132: Cyclohexane | W132: 0.78 | X132: 0.127 | Y132: 0.94
Q133: 10" | R133: 9.564 | S133: 10.02 | U133: Dichloroethane | W133: 1.25 | X133: 0.087 | Y133: 0.8
Q134: 12" | R134: 11.376 | S134: 11.938 | U134: Dichloroethylene | W134: 1.27 | X134: 0.24 | Y134: 0.4454
Q135: 14" | R135: 12.5 | S135: 13.124 | U135: Dichromate potassium | W135: 2.69 | X135: 0.453 | Y135: =SUM(1.03*0.974) -> 1.00322
Q136: 16" | R136: 14.314 | S136: 15 | U136: Di-iode | W136: 4.92 | X136: 0.00028
Q137: 18" | R137: 16.126 | S137: 16.876 | U137: Dioxane | W137: 1 | X137: 0.041 | Y137: 1.2
Q138: 20" | R138: 17.938 | S138: 18.814 | U138: Dioxyde of souffre CAS 2025884) | W138: 0.01 | X138: 2.4 | Y138: 1.2
Q139: 24" | R139: 21.564 | S139: 22.626 | U139: Distilled water | W139: 0.998 | X139: 0.023 | Y139: 0.01
U140: Edta | W140: 0.86 | X140: 2.4
Q141: Y | R141: SCH 40 | U141: Ethanol | W141: 0.7893 | X141: 0.059 | Y141: 1.2
Q142: N | R142: SCH 80 | U142: Ethyl ether | W142: 0.7134 | X142: 0.5863 | Y142: 0.23
Q143: =INDEX(Q141:Q142,H62) -> Y | R143: SCH 160 | U143: Ethylene | W143: 1.1135 | X143: 0.0073 | Y143: 21
Q144: =INDEX(Q141:Q142,H62) -> Y | U144: Hydrofluorosilicic acid 32% | W144: 1.27 | X144: 0.01 | Y144: 0.01
U145: Formaldehyde 37% | W145: 0.8135 | X145: 1.01 | Y145: 0.01
U146: Formic acid 50% | W146: 1.22 | X146: 0.04 | Y146: 1.804
U147: Hexane | W147: 0.66 | X147: 0.16 | Y147: 0.31
U148: Hydrazine 35% | W148: 1.0011 | X148: 1.3322 | Y148: 0.97
U149: Hydrobromique acid 50% | W149: 1.49 | X149: 0.233 | Y149: 10
U150: Hydrochloric acid 36% | W150: 1.18 | X150: 0.2 | Y150: 1.998
U151: Hydrofluoric acid 40% | W151: 0.98 | X151: 0.4 | Y151: 0.53
U152: Hydrogen peroxide 50% | W152: 1.194 | X152: 0.00244 | Y152: 0.01
U153: Magnesium Chloride | W153: 2.32 | X153: 0.01 | Y153: 1.022
U154: Methanol | W154: 0.7915 | X154: 0.5332895 | Y154: 0.59
U155: Methyl alcohol | W155: 0.79 | X155: 0.129 | Y155: 0.59
U156: Mercury | W156: 13.55 | X156: 1.6e-05 | Y156: 1.55
U157: Morpholine | W157: 1 | X157: 0.009332 | Y157: 2.23
U158: Nitric acid 40% | W158: 1.4 | X158: 0.0094 | Y158: 1.77
U159: Oxalic acid 40% | W159: 1.9 | X159: 0.01 | Y159: 1.17
U160: Dioxyde of manganese 83-85% | W160: 5.03 | X160: 0.01 | Y160: 1.2
U161: Oxygenated water 50% | W161: 1.2 | X161: 0.018 | Y161: 1.8
U162: Phenol | W162: 1.057 | X162: 0.04666 | Y162: 12.7
U163: Phosphoric acid 85% | W163: 1.834 | X163: 0.004 | Y163: 1.008
U164: Potassium chloride | W164: 1.987 | X164: 0.01 | Y164: 0.998
U165: Potassium Hydroxide 50% | W165: 2.044 | X165: 0.01 | Y165: 1.008
U166: Potassium permanganate | W166: 2.703 | X166: 0.01 | Y166: 0.999
U167: Acid orthophosphorique | W167: 1.53 | X167: 0.003
U168: Pyridine | W168: 0.98 | X168: 0.02 | Y168: 0.95
U169: Sodium carbonate 35% | W169: 2.532 | X169: 0.01 | Y169: 1.023
U170: Sodium Chloride | W170: 2.165 | X170: 0.01 | Y170: 0.56
U171: Sodium Chlorite 30% | W171: 1.87 | X171: 0.01 | Y171: 1.002
U172: Sodium hydroxide 50% | W172: 2.13 | X172: 0.01 | Y172: 120
U173: Sodium hypochlorite | W173: 1.25 | X173: 0.0075 | Y173: 20
U174: Sodium sulphite | W174: 1.48 | X174: 0.004 | Y174: 4
U175: Sulfuric acid 96% | W175: 1.84 | X175: 0.013 | Y175: 19.8
U176: Tartaric acid | W176: 1.788 | X176: 0.01 | Y176: 1.021
U177: Toulene | W177: 0.8661 | X177: 0.0292 | Y177: 0.58
U178: Trichloroethane | W178: 1.34 | X178: 0.133 | Y178: 0.79
U179: Trichloroethylene | W179: 1.46 | X179: 0.077 | Y179: 0.55
U180: Triethylene glycol | W180: 1.127 | X180: 0.02 | Y180: 1.2
U181: Urea | W181: 1.335 | X181: 0.01 | Y181: 1.005
U182: Xylene | W182: 0.864 | X182: 0.799 | Y182: 0.809
U183: Other - Enter Chemical Name & Parameters Below
U184: FERRIC CHLORIDE | W184: 1.42 | X184: 0.01 | Y184: 12
U185: WATER | W185: 1 | X185: 0.01 | Y185: 1
U186: RESET | W186: ='NPIP SUCTION RESULTS'!Y176 -> 1 | X186: ='NPIP SUCTION RESULTS'!Z176 -> 0.1450377 | Y186: ='NPIP SUCTION RESULTS'!AA176 -> 1 | AC186: MULTIPLEXING FACTOR | AD186: ='NPIP SUCTION RESULTS'!$AF$176 -> 1 | AE186: DO NOT REMOVE THIS
U187: Hydrofluosilicic Acid | W187: 1.3 | X187: 0.1 | Y187: 6.5
U188: Zinc Orthophosphate | W188: 1.1 | X188: 0.1 | Y188: 10

Sheet Directions & Training
B2: DOUBLE CLICK ON THE BOX BELOW FOR STEP BY STEP INSTRUCTIONS ON HOW TO USE THE PUMPING SYSTEMS ANALYSIS TOOL | D2: DOUBLE CLICK ON THE BOX BELOW FOR NPSH TRAINING SLIDE SHOW
B3: V V V V V V V V V V V V V V V V | D3: V V V V V V V V V V V V V V V V V
B23: PRESS <ESC> KEY TO EXIT SLIDE SHOW | D23: PRESS <ESC> KEY TO EXIT SLIDE SHOW
